bitfinex/quotes_SOLUSD_20241222
["timestamp","ask_amount","ask_price","bid_price","bid_amount"]
[1734844907054,0.92337026,179.71,179.59,0.6962736]
[1734844907237,0.12549,179.72,179.59,0.6962736]
[1734844907409,1.16891225,179.72,179.59,0.6962736]
[1734844908049,20.0,179.7,179.59,20.6962736]
[1734844908252,21.04353996,179.7,179.59,20.6962736]
[1734844908405,21.04353996,179.7,179.59,0.6962736]
[1734844908745,1.04368259,179.72,179.59,0.6962736]
[1734844908947,1.04330027,179.8,179.61,27.52644539]
[1734844909106,1.04330027,179.8,179.6,0.12549]
[1734844909313,23.776884,179.65,179.59,7.36e-05]
[1734844909508,23.776884,179.61,179.59,7.36e-05]
[1734844909813,25.13736993,179.6,179.59,7.36e-05]
[1734844910448,0.3162,179.6,179.59,7.36e-05]
[1734844910754,20.0,179.63,179.59,7.36e-05]
[1734844910916,1.04398424,179.62,179.59,7.36e-05]
[1734844911653,20.0,179.62,179.59,7.36e-05]
[1734844911820,1.04403387,179.61,179.59,7.36e-05]
[1734844912020,23.902374,179.6,179.59,7.36e-05]
[1734844912416,20.0,179.64,179.59,7.36e-05]
[1734844912622,1.04399331,179.63,179.59,7.36e-05]
[1734844912935,0.12549,179.65,179.45,8.9156]
[1734844913128,1.16971386,179.65,179.45,8.9156]
[1734844914036,20.0,179.59,179.45,8.9156]
[1734844914336,0.12549,179.57,179.45,8.9156]
[1734844914543,20.0,179.55,179.45,8.9156]
[1734844914725,0.11140475,179.46,179.41,0.6962736]
[1734844916225,23.776884,179.45,179.41,0.6962736]
[1734844916418,1.04507712,179.44,179.41,0.6962736]
[1734844916616,1.17053365,179.44,179.41,0.6962736]
[1734844918778,20.0,179.43,179.41,0.6962736]
[1734844919664,0.11140475,179.46,179.41,0.6962736]
[1734844920427,0.11140475,179.46,179.41,28.22271899]
[1734844920833,0.11140475,179.46,179.41,0.6962736]
[1734844922142,0.11140475,179.46,179.41,28.22271899]
[1734844922548,0.11140475,179.46,179.41,0.6962736]
[1734844923062,0.11140475,179.46,179.45,47.52644539]
[1734844923274,0.11873308,179.48,179.46,0.12549]
[1734844923568,0.11873308,179.48,179.47,51.30332939]
[1734844924177,0.11279341,179.53,179.48,6.42539]
[1734844924342,0.11279341,179.53,179.5,20.12549]
[1734844924679,0.11279341,179.53,179.5,71.42881939]
[1734844925383,0.11279341,179.53,179.5,71.30332939]
[1734844927061,0.11279341,179.53,179.5,20.0]
[1734844927369,0.11279341,179.53,179.5,71.30332939]
[1734844927765,0.11279341,179.53,179.51,43.902374]
[1734844928059,0.11279341,179.53,179.51,71.42881939]
[1734844929397,1.71e-05,179.52,179.51,71.42881939]
[1734844929599,0.11279341,179.53,179.52,37.828374]
[1734844929778,0.11279341,179.53,179.52,65.35481939]
[1734844930289,0.11520943,179.54,179.53,23.902374]
[1734844930490,0.11520943,179.54,179.53,51.42881939]
[1734844930967,7.619e-05,179.55,179.54,13.9244]
[1734844931168,1.04358089,179.75,179.62,23.776884]
[1734844931377,0.4313,179.79,179.63,27.52644539]
[1734844931864,1.04326691,179.78,179.64,27.52644539]
[1734844932065,1.04326656,179.82,179.67,27.52644539]
[1734844932296,0.4587,179.83,179.69,27.52644539]
[1734844932525,0.4313,179.85,179.68,27.52644539]
[1734844932925,1.04297115,179.84,179.68,27.52644539]
[1734844933129,0.4313,179.85,179.71,27.52644539]
[1734844933637,0.12549,179.83,179.68,27.52644539]
[1734844933807,0.4313,179.85,179.69,27.52644539]
[1734844933808,1.04289234,179.82,179.69,27.52644539]
[1734844934131,0.4313,179.85,179.67,51.30332939]
[1734844934298,1.16852688,179.84,179.67,51.30332939]
[1734844934719,0.1196809,179.68,179.65,27.52644539]
[1734844934907,0.1196809,179.68,179.64,27.52644539]
[1734844935217,0.1196809,179.68,179.66,27.52644539]
[1734844935412,0.1196809,179.68,179.67,27.52644539]
[1734844936144,0.1196809,179.68,179.67,27.65193539]
[1734844936330,0.06757805,179.72,179.68,23.776884]
[1734844936511,0.06757805,179.72,179.68,51.30332939]
[1734844937826,0.06757805,179.72,179.71,51.42881939]
[1734844938023,0.06757805,179.72,179.71,51.30332939]
[1734844940043,0.06757805,179.72,179.66,27.52644539]
[1734844940214,0.06757805,179.72,179.63,2.4198]
[1734844940418,0.06757805,179.72,179.63,29.94624539]
[1734844940717,0.06757805,179.72,179.69,27.52644539]
[1734844941046,0.06757805,179.72,179.7,27.52644539]
[1734844941212,0.06757805,179.72,179.68,27.52644539]
[1734844941613,0.06757805,179.72,179.69,27.52644539]
[1734844942421,0.06757805,179.72,179.7,27.52644539]
[1734844943042,0.06757805,179.72,179.71,27.52644539]
[1734844943217,0.06757805,179.72,179.71,51.30332939]
[1734844945036,0.06757805,179.72,179.71,51.42881939]
[1734844945723,0.06757805,179.72,179.71,51.30332939]
[1734844946043,0.06757805,179.72,179.71,54.22336872]
[1734844946243,0.06757805,179.72,179.69,30.44648472]
[1734844946443,0.06757805,179.72,179.65,30.44648472]
[1734844946640,0.06757805,179.72,179.63,32.86628472]
[1734844946956,0.06757805,179.72,179.64,30.44648472]
[1734844947136,0.06757805,179.72,179.66,30.44648472]
[1734844947679,0.06757805,179.72,179.63,32.86628472]
[1734844947965,0.06757805,179.72,179.61,36.74638472]
[1734844948139,0.06757805,179.72,179.61,6.2999]
[1734844948344,0.06757805,179.72,179.62,30.44648472]
[1734844948936,0.06757805,179.72,179.64,30.44648472]
[1734844949153,0.06757805,179.72,179.65,30.44648472]
[1734844949449,0.06757805,179.72,179.64,30.44648472]
[1734844950454,0.06757805,179.72,179.65,30.44648472]
[1734844950634,0.06757805,179.72,179.64,30.44648472]
[1734844950842,0.19306805,179.72,179.61,36.74638472]
[1734844951159,1.23647903,179.72,179.58,30.44648472]
[1734844951348,20.0,179.68,179.58,30.44648472]
[1734844952048,20.0,179.68,179.57,32.80578472]
[1734844952247,0.06757805,179.72,179.65,30.44648472]
[1734844952447,0.06757805,179.72,179.66,30.44648472]
[1734844952670,0.06757805,179.72,179.68,30.44648472]
[1734844953538,0.06757805,179.72,179.69,30.44648472]
[1734844953926,0.06757805,179.72,179.68,30.44648472]
[1734844954753,0.11978376,179.7,179.69,30.44648472]
[1734844955336,0.11978376,179.7,179.69,54.22336872]
[1734844956159,0.11978376,179.7,179.69,27.60625483]
[1734844956343,0.11978376,179.7,179.69,51.50862883]
[1734844957031,0.11978376,179.7,179.69,51.38313883]
[1734844958065,0.11978376,179.7,179.69,51.50862883]
[1734844959078,0.11978376,179.7,179.69,0.12549]
[1734844959370,0.11978376,179.7,179.69,51.38313883]
[1734844961259,0.11978376,179.7,179.69,51.50862883]
[1734844961558,5.073e-05,179.71,179.7,14.03749]
[1734844961730,5.073e-05,179.71,179.7,65.42062883]
[1734844962352,5.073e-05,179.71,179.7,65.29513883]
[1734844962564,5.073e-05,179.71,179.68,2.5063]
[1734844962565,5.073e-05,179.71,179.69,27.60625483]
[1734844962761,5.073e-05,179.71,179.68,30.11255483]
[1734844962958,5.073e-05,179.71,179.69,27.60625483]
[1734844963745,5.073e-05,179.71,179.7,27.60625483]
[1734844963970,5.073e-05,179.71,179.7,27.73174483]
[1734844964184,0.11216872,179.73,179.71,23.902374]
[1734844964348,0.08160775,179.75,179.74,71.38313883]
[1734844965074,0.08160775,179.75,179.72,27.60625483]
[1734844965252,0.08160775,179.75,179.69,27.60625483]
[1734844965451,0.08160775,179.75,179.68,30.11255483]
[1734844967054,0.08160775,179.75,179.65,27.60625483]
[1734844967260,0.63839775,179.75,179.62,36.38245483]
[1734844967454,0.12549,179.73,179.6,27.60625483]
[1734844967651,0.12549,179.73,179.59,27.60625483]
[1734844967854,0.12549,179.7,179.58,27.60625483]
[1734844968056,1.16909486,179.7,179.58,27.60625483]
[1734844969673,20.0,179.71,179.6,27.60625483]
[1734844970665,0.51290775,179.75,179.66,27.60625483]
[1734844971463,0.51290775,179.75,179.65,27.60625483]
[1734844971861,0.51290775,179.75,179.64,20.0]
[1734844972082,0.12549,179.74,179.62,27.60625483]
[1734844972285,0.12549,179.74,179.64,20.0]
[1734844972781,1.16882175,179.74,179.64,20.0]
[1734844972962,1.16882175,179.74,179.61,23.776884]
[1734844972963,1.16882175,179.74,179.61,27.60625483]
[1734844973290,1.16882175,179.74,179.6,27.60625483]
[1734844973291,0.12549,179.72,179.6,27.60625483]
[1734844973482,1.16895419,179.72,179.6,27.60625483]
[1734844973887,1.04346419,179.72,179.6,27.60625483]
[1734844974062,24.28979175,179.75,179.62,27.60625483]
[1734844974258,20.0,179.72,179.61,27.60625483]
[1734844974682,0.10452185,179.62,179.61,27.60625483]
[1734844975674,0.10452185,179.62,179.61,51.38313883]
[1734844975863,0.10452185,179.62,179.61,27.60625483]
[1734844977089,0.10452185,179.62,179.59,27.60625483]
[1734844977679,0.10452185,179.62,179.47,8.63626591]
[1734844977680,0.12549,179.6,179.47,8.63626591]
[1734844977995,0.12549,179.57,179.47,8.63626591]
[1734844978188,1.16983135,179.57,179.47,8.63626591]
[1734844978385,0.12549,179.55,179.47,8.63626591]
[1734844978706,0.12549,179.52,179.41,0.6962736]
[1734844978885,20.0,179.53,179.42,30.54592562]
[1734844979097,1.04440275,179.61,179.42,30.54592562]
[1734844979303,0.12549,179.56,179.42,30.54592562]
[1734844979596,1.16992685,179.56,179.42,30.54592562]
[1734844980908,1.16992685,179.56,179.43,23.776884]
[1734844981075,1.16992685,179.56,179.42,30.54592562]
[1734844981076,20.0,179.52,179.42,30.54592562]
[1734844981283,20.0,179.6,179.43,30.54592562]
[1734844981481,43.776884,179.58,179.43,30.54592562]
[1734844981781,1.04437952,179.57,179.43,30.54592562]
[1734844981983,1.04437952,179.57,179.42,54.32280962]
[1734844982184,20.0,179.53,179.41,0.6962736]
[1734844982403,0.4313,179.51,179.41,0.6962736]
[1734844982712,20.0,179.48,179.41,0.6962736]
[1734844982903,1.04487536,179.47,179.41,0.6962736]
[1734844983203,0.4313,179.51,179.41,0.6962736]
[1734844983204,23.776884,179.49,179.41,0.6962736]
[1734844983408,1.04485945,179.48,179.41,0.6962736]
[1734844983982,20.0,179.46,179.41,0.6962736]
[1734844984193,1.04497962,179.45,179.41,0.6962736]
[1734844984508,1.04497962,179.45,179.3,30.54592562]
[1734844984716,1.04497962,179.45,179.32,30.54592562]
[1734844985006,20.0,179.41,179.28,30.54592562]
[1734844985211,20.0,179.41,179.26,30.54592562]
[1734844985212,1.17070614,179.4,179.26,30.54592562]
[1734844985411,20.0,179.36,179.24,36.96342562]
[1734844986405,0.12549,179.33,179.23,0.6962736]
[1734844986605,1.04567069,179.33,179.23,0.6962736]
[1734844986794,1.04556992,179.35,179.23,0.6962736]
[1734844986992,0.4313,179.39,179.23,0.6962736]
[1734844987301,0.12549,179.38,179.23,0.6962736]
[1734844987480,23.902374,179.33,179.23,0.6962736]
[1734844987684,20.0,179.3,179.23,0.6962736]
[1734844987885,1.04586904,179.29,179.23,0.6962736]
[1734844988109,0.12549,179.28,179.23,0.6962736]
[1734844988278,23.902374,179.28,179.23,0.6962736]
[1734844988482,11.17171252,179.3,179.23,0.6962736]
[1734844988787,0.4313,179.28,179.23,0.6962736]
[1734844988987,23.776884,179.26,179.23,0.6962736]
[1734844989204,23.776884,179.24,179.23,0.6962736]
[1734844989612,1.35195024,179.28,179.23,0.6962736]
[1734844989820,0.4313,179.34,179.23,0.6962736]
[1734844989984,0.92065024,179.33,179.23,0.6962736]
[1734844990182,0.4313,179.34,179.23,0.6962736]
[1734844990986,0.4313,179.34,179.23,7.36e-05]
[1734844991185,0.92065024,179.33,179.04,27.7701962]
[1734844991388,7.73147336,179.33,179.05,28.4664698]
[1734844991589,23.776884,179.32,179.07,27.7701962]
[1734844991782,23.776884,179.32,179.08,28.60736528]
[1734844991783,23.776884,179.28,179.08,28.60736528]
[1734844992111,0.4313,179.34,179.08,35.02486528]
[1734844992112,20.0,179.21,179.08,35.02486528]
[1734844992296,23.776884,179.19,179.07,2.5776]
[1734844992499,20.0,179.16,179.07,3.4149508]
[1734844993318,23.776884,179.32,179.07,3.4149508]
[1734844993499,23.776884,179.32,179.07,31.185147]
[1734844993500,20.0,179.29,179.07,31.185147]
[1734844993814,20.0,179.23,179.09,27.7701962]
[1734844994015,0.92065024,179.22,179.1,0.83707615]
[1734844994214,0.92065024,179.25,179.11,23.776884]
[1734844994405,0.92065024,179.32,179.12,0.83699888]
[1734844994603,0.92065024,179.32,179.09,27.7701962]
[1734844994806,0.12074095,179.12,179.1,0.8370852]
[1734844995318,0.12074095,179.12,179.11,23.776884]
[1734844995513,0.12074095,179.12,179.1,28.6072814]
[1734844995824,0.12074095,179.12,179.1,0.8370852]
[1734844996403,0.12074095,179.12,179.08,0.83719524]
[1734844997306,0.12074095,179.12,179.08,28.60739144]
[1734844997506,0.12074095,179.12,179.08,0.83719524]
[1734845000336,0.12074095,179.12,179.08,28.60739144]
[1734845000633,0.12074095,179.12,179.08,0.83719524]
[1734845003735,0.12074095,179.12,179.09,23.902374]
[1734845003949,0.12059338,179.13,179.12,23.776884]
[1734845004133,0.12059338,179.13,179.12,52.38404014]
[1734845004440,0.12059338,179.13,179.12,0.83695994]
[1734845004809,0.12059338,179.13,179.09,0.83714455]
[1734845006042,0.12059338,179.13,179.09,28.60734075]
[1734845006338,0.12059338,179.13,179.09,0.83714455]
[1734845006727,0.12059338,179.13,179.09,28.60734075]
[1734845007553,0.11966829,179.14,179.13,23.902374]
[1734845007728,0.92065024,179.38,179.14,33.8200962]
[1734845007933,2.233055,179.35,179.16,71.6725702]
[1734845008135,2.81785049,179.37,179.18,23.902374]
[1734845008356,2.232356,179.41,179.18,54.92047682]
[1734845008664,4.132e-05,179.19,179.18,54.92047682]
[1734845009160,4.132e-05,179.19,179.18,31.01810282]
[1734845009360,4.132e-05,179.19,179.18,0.83650662]
[1734845009544,4.132e-05,179.19,179.17,20.0]
[1734845009959,4.132e-05,179.19,179.15,0.83671248]
[1734845010554,4.132e-05,179.19,179.15,31.48201795]
[1734845011272,4.132e-05,179.19,179.17,20.0]
[1734845011462,4.132e-05,179.19,179.18,24.61356389]
[1734845011662,4.132e-05,179.19,179.18,55.38435936]
[1734845012639,4.132e-05,179.19,179.12,0.83661987]
[1734845012959,4.132e-05,179.19,179.09,0.83704295]
[1734845013146,4.132e-05,179.19,179.08,6.0499]
[1734845013469,4.132e-05,179.19,179.07,3.24844295]
[1734845013762,4.132e-05,179.19,179.07,33.89374842]
[1734845014159,4.132e-05,179.19,179.07,31.48234842]
[1734845014462,23.776884,179.18,179.07,0.83704295]
[1734845014657,23.776884,179.18,179.06,0.83733802]
[1734845014658,0.11211371,179.08,179.06,0.83733802]
[1734845015958,0.11211371,179.08,179.05,0.6962736]
[1734845016975,0.11211371,179.08,179.06,0.8375124]
[1734845017477,0.11211371,179.08,179.05,1.53371668]
[1734845017841,0.11211371,179.08,179.06,0.8375076]
[1734845018863,0.11211371,179.08,179.05,0.6962736]
[1734845019066,0.11211371,179.08,179.05,1.53379152]
[1734845019878,0.11211371,179.08,179.05,32.17909699]
[1734845020082,0.11211371,179.08,179.05,1.53379152]
[1734845022682,0.11211371,179.08,179.05,32.17909699]
[1734845025284,0.11211371,179.08,179.05,1.53379152]
[1734845026074,0.11668141,179.12,179.05,1.53379152]
[1734845026075,15.81879816,179.18,179.05,1.53379152]
[1734845026289,20.0,179.15,179.05,0.6962736]
[1734845028276,23.776884,179.14,179.05,0.6962736]
[1734845028684,20.0,179.15,179.05,0.6962736]
[1734845032289,20.0,179.15,179.05,1.53367355]
[1734845032582,15.81879816,179.18,179.05,1.53367355]
[1734845033700,15.81879816,179.18,179.05,0.6962736]
[1734845034192,20.0,179.15,179.05,0.6962736]
[1734845034684,0.11714479,179.06,179.05,0.6962736]
[1734845035283,0.11714479,179.06,179.05,1.53381842]
[1734845036690,0.11714479,179.06,179.05,55.95600789]
[1734845039090,0.11714479,179.06,179.05,0.6962736]
[1734845042374,0.11714479,179.06,179.05,1.53367862]
[1734845042576,0.11714479,179.06,179.05,0.6962736]
[1734845043377,0.11714479,179.06,179.05,1.53372267]
[1734845044301,0.11714479,179.06,179.05,0.6962736]
[1734845044605,0.11714479,179.06,179.05,1.53370713]
[1734845044780,0.11714479,179.06,179.05,25.31059113]
[1734845046378,0.11714479,179.06,179.05,1.53370713]
[1734845046598,0.11714479,179.06,179.05,0.6962736]
[1734845047696,0.11714479,179.06,179.05,24.4731576]
[1734845047895,0.11714479,179.06,179.05,25.31046341]
[1734845048698,0.11714479,179.06,179.05,55.95576888]
[1734845049175,0.11714479,179.06,179.05,25.31046341]
[1734845049580,0.11714479,179.06,179.05,55.95576888]
[1734845050090,0.11100322,179.07,179.06,37.864174]
[1734845050301,0.11100322,179.07,179.06,68.50947947]
[1734845051709,0.11160555,179.08,179.06,68.50947947]
[1734845052000,0.11160555,179.08,179.05,10.15777941]
[1734845052001,0.01080143,179.12,179.08,37.862574]
[1734845052204,0.00191257,179.13,179.12,23.902374]
[1734845052402,8.41854656,179.31,179.14,23.776884]
[1734845052612,8.41854656,179.31,179.19,30.64530547]
[1734845052808,8.41854656,179.31,179.22,30.64530547]
[1734845053009,8.41854656,179.31,179.23,0.83658101]
[1734845053237,8.65224656,179.39,179.23,0.83658101]
[1734845053393,25.69641315,179.38,179.17,50.64530547]
[1734845053597,25.69641315,179.38,179.18,54.42218947]
[1734845053798,25.69641315,179.38,179.19,30.64530547]
[1734845054200,23.776884,179.37,179.19,30.64530547]
[1734845054512,25.69641315,179.38,179.23,30.64530547]
[1734845054714,0.12239263,179.25,179.24,24.61333401]
[1734845054925,0.12239263,179.25,179.24,55.25863948]
[1734845056096,0.12239263,179.25,179.24,61.54433948]
[1734845056417,0.12239263,179.25,179.24,61.66982948]
[1734845056616,0.10479028,179.27,179.25,54.54767947]
[1734845056928,9.028e-05,179.27,179.26,55.2583403]
[1734845057417,9.028e-05,179.27,179.26,55.3838303]
[1734845057619,0.11048666,179.29,179.26,55.3838303]
[1734845057799,0.11048666,179.29,179.28,54.54767947]
[1734845057999,0.11048666,179.29,179.28,55.38379532]
[1734845058322,0.11048666,179.29,179.28,86.02910079]
[1734845059318,0.11048666,179.29,179.28,55.25830532]
[1734845059521,0.11048666,179.29,179.26,30.64530547]
[1734845059709,0.11048666,179.29,179.27,31.48171601]
[1734845059904,0.11048666,179.29,179.28,30.64530547]
[1734845060321,0.11048666,179.29,179.28,30.77079547]
[1734845060523,0.11048666,179.29,179.28,61.41610094]
[1734845060728,0.11048666,179.29,179.28,85.19298494]
[1734845062830,0.11048666,179.29,179.28,54.54767947]
[1734845063330,0.11048666,179.29,179.28,30.64530547]
[1734845063857,0.11048666,179.29,179.28,31.48156893]
[1734845064531,0.11048666,179.29,179.28,86.0292484]
[1734845064836,0.11048666,179.29,179.28,55.38394293]
[1734845065215,0.11048666,179.29,179.28,86.0292484]
[1734845066035,0.2337,179.45,179.29,0.12549]
[1734845066240,0.5484,179.48,179.36,30.64530547]
[1734845066447,0.5484,179.48,179.37,31.48120592]
[1734845066646,20.2338,179.51,179.37,31.48120592]
[1734845066647,0.2338,179.51,179.4,30.64530547]
[1734845066852,0.2338,179.51,179.4,31.48103334]
[1734845067038,0.7785,179.53,179.4,31.48103334]
[1734845067247,0.7785,179.53,179.42,30.64530547]
[1734845067554,0.7785,179.53,179.43,30.64530547]
[1734845068066,0.2338,179.56,179.44,24.61243891]
[1734845068266,0.2338,179.56,179.45,30.64530547]
[1734845068934,0.7785,179.58,179.45,30.64530547]
[1734845069142,0.7785,179.58,179.47,30.64530547]
[1734845069542,0.2338,179.61,179.49,30.64530547]
[1734845069878,0.2338,179.61,179.49,50.64530547]
[1734845070444,0.2763,179.67,179.54,30.64530547]
[1734845070748,0.2763,179.67,179.56,30.64530547]
[1734845071254,1.4747736,179.68,179.57,30.64530547]
[1734845071590,1.4747736,179.68,179.58,30.64530547]
[1734845072064,1.4747736,179.68,179.57,30.64530547]
[1734845072255,1.4747736,179.68,179.58,31.48027147]
[1734845072865,1.4747736,179.68,179.56,30.64530547]
[1734845073075,23.776884,179.67,179.54,31.48025323]
[1734845073242,20.0,179.64,179.54,51.48025323]
[1734845073441,20.0,179.64,179.54,31.48025323]
[1734845074040,20.0,179.64,179.52,30.64530547]
[1734845074249,20.0,179.64,179.54,30.64530547]
[1734845074569,20.0,179.64,179.55,31.48044331]
[1734845074760,0.10801587,179.58,179.57,30.64530547]
[1734845075148,0.10801587,179.58,179.56,30.64530547]
[1734845075350,0.10801587,179.58,179.57,0.83500885]
[1734845075758,0.10801587,179.58,179.57,55.25719832]
[1734845076062,0.10801587,179.58,179.57,61.68288832]
[1734845076264,4.05e-06,179.59,179.58,26.445374]
[1734845076448,4.05e-06,179.59,179.58,71.01197947]
[1734845077461,4.05e-06,179.59,179.58,57.09067947]
[1734845077970,4.05e-06,179.59,179.58,30.64530547]
[1734845078998,4.05e-06,179.59,179.58,54.42218947]
[1734845079149,4.05e-06,179.59,179.58,54.54767947]
[1734845080969,3.639e-05,179.61,179.59,37.822874]
[1734845081188,6.225e-05,179.62,179.61,23.902374]
[1734845081487,6.766e-05,179.63,179.61,85.19298494]
[1734845081652,1.994e-05,179.64,179.63,26.445374]
[1734845081855,2.226908,179.82,179.63,26.445374]
[1734845081856,2.226908,179.82,179.63,94.03618494]
[1734845082068,7.36e-05,179.68,179.67,54.54767947]
[1734845082248,7.36e-05,179.68,179.67,69.29614001]
[1734845082754,0.7785,179.84,179.7,20.0]
[1734845082956,0.2763,179.87,179.77,30.64530547]
[1734845083452,0.2763,179.87,179.74,0.83400355]
[1734845083675,0.2763,179.87,179.75,30.64530547]
[1734845083977,0.2763,179.87,179.77,30.64530547]
[1734845084176,0.2763,179.87,179.76,30.64530547]
[1734845084371,0.2763,179.87,179.77,31.47935464]
[1734845084680,0.7785,179.89,179.77,31.47935464]
[1734845085057,0.7785,179.89,179.78,30.64530547]
[1734845086079,0.7785,179.89,179.75,30.64530547]
[1734845086281,0.7785,179.89,179.74,37.77967149]
[1734845086476,0.7785,179.89,179.75,30.64530547]
[1734845086661,0.7785,179.89,179.79,30.64530547]
[1734845086855,0.7785,179.89,179.8,31.47918911]
[1734845087056,0.7785,179.89,179.8,0.83388364]
[1734845087575,0.7785,179.89,179.77,20.83398782]
[1734845087767,0.7785,179.89,179.77,51.47929329]
[1734845088264,0.7785,179.89,179.78,30.64530547]
[1734845088472,0.7785,179.89,179.8,30.64530547]
[1734845088684,0.2764,179.93,179.82,30.64530547]
[1734845088976,0.2764,179.93,179.83,31.47905212]
[1734845089181,0.7785,179.94,179.84,30.64530547]
[1734845089361,0.7785,179.94,179.85,0.83361967]
[1734845089782,0.7785,179.94,179.85,31.47892514]
[1734845089959,0.7785,179.94,179.85,0.83361967]
[1734845090566,0.7785,179.94,179.85,31.47892514]
[1734845091685,0.7785,179.94,179.81,30.64530547]
[1734845091977,0.7785,179.94,179.84,30.64530547]
[1734845092182,0.7785,179.94,179.85,0.83364208]
[1734845092369,0.7785,179.94,179.85,31.47894755]
[1734845093160,0.7785,179.99,179.85,55.38132155]
[1734845094767,0.80343619,179.86,179.85,55.38132155]
[1734845095183,2.24e-05,179.9,179.89,23.902374]
[1734845095505,0.7785,180.05,179.96,20.0]
[1734845095708,0.7785,180.05,179.97,0.83305618]
[1734845095891,0.7785,180.05,179.97,31.47836165]
[1734845096375,0.7785,180.05,179.98,30.64530547]
[1734845096576,0.7785,180.05,179.99,0.83308551]
[1734845097257,0.7785,180.05,179.95,0.83308953]
[1734845097457,0.7785,180.05,179.93,30.64530547]
[1734845097688,23.776884,180.03,179.91,30.64530547]
[1734845097906,20.0,180.0,179.9,30.64530547]
[1734845098083,20.0,180.0,179.92,30.64530547]
[1734845098287,20.0,180.0,179.93,31.47860953]
[1734845098582,0.7785,180.05,179.93,0.83330406]
[1734845099072,0.7785,180.05,179.93,31.47860953]
[1734845099889,0.7785,180.05,179.95,30.64530547]
[1734845100091,0.7785,180.05,179.96,30.64530547]
[1734845100279,0.7785,180.05,179.93,30.64530547]
[1734845100585,0.7785,180.05,179.94,0.83332478]
[1734845100792,0.7785,180.05,179.94,31.47863025]
[1734845100973,0.7785,180.05,179.95,30.64530547]
[1734845101196,0.2764,180.08,179.98,30.64530547]
[1734845101691,0.2764,180.08,179.99,0.83303285]
[1734845101990,0.2764,180.08,179.94,30.64530547]
[1734845102180,0.2764,180.08,179.92,31.47834709]
[1734845102372,0.2764,180.08,179.93,30.64530547]
[1734845102692,0.2764,180.08,179.92,30.64530547]
[1734845103485,20.0,180.06,179.92,30.64530547]
[1734845103797,20.0,180.06,179.93,30.64530547]
[1734845103999,0.2764,180.08,179.93,30.64530547]
[1734845104213,20.0,180.07,179.94,30.64530547]
[1734845104508,20.0,180.07,179.95,31.47857284]
[1734845104800,20.0,180.07,179.95,0.83326737]
[1734845105000,0.2764,180.08,179.95,31.47857284]
[1734845105205,0.2764,180.08,179.97,30.64530547]
[1734845105379,1.5817,180.09,179.99,30.64530547]
[1734845105579,0.2696,180.13,180.02,30.64530547]
[1734845105794,0.2696,180.13,180.03,30.64530547]
[1734845106299,0.2696,180.13,180.0,30.64530547]
[1734845106508,0.2696,180.13,180.0,31.47830622]
[1734845107600,0.2696,180.13,180.01,0.83296422]
[1734845107809,0.2696,180.13,180.02,30.64530547]
[1734845108311,0.2696,180.13,179.97,30.64530547]
[1734845108703,0.2696,180.13,179.98,30.64530547]
[1734845108927,0.2696,180.13,179.96,30.64530547]
[1734845109613,0.2696,180.13,179.99,30.64530547]
[1734845110619,0.2696,180.13,180.01,30.64530547]
[1734845110819,0.2696,180.13,180.02,30.64530547]
[1734845110992,0.2696,180.13,180.03,0.83286668]
[1734845111921,0.2696,180.13,180.03,31.47817215]
[1734845112489,1.5817,180.15,180.03,31.47817215]
[1734845114738,0.80339229,180.04,180.03,55.38054615]
[1734845115057,0.80339229,180.04,180.03,62.01634615]
[1734845115721,0.80339229,180.04,180.03,61.89085615]
[1734845116119,0.80339229,180.04,180.03,62.01634615]
[1734845118046,9.229e-05,180.04,180.03,62.01634615]
[1734845120051,6.038e-05,180.06,180.05,23.902374]
[1734845120263,1.291e-05,180.09,180.08,43.902374]
[1734845120425,6.68e-06,180.1,180.09,23.902374]
[1734845120626,6.68e-06,180.1,180.09,85.19298494]
[1734845121451,6.68e-06,180.1,180.09,99.07488494]
[1734845121647,6.68e-06,180.1,180.09,30.64530547]
[1734845122046,6.68e-06,180.1,180.08,30.64530547]
[1734845122247,6.68e-06,180.1,180.06,30.64530547]
[1734845122427,6.68e-06,180.1,180.0,31.47806954]
[1734845122627,6.68e-06,180.1,180.0,0.83276407]
[1734845122923,6.68e-06,180.1,179.98,0.83293164]
[1734845123348,23.776884,180.08,179.96,0.8331662]
[1734845123529,20.0,180.05,179.93,0.8331662]
[1734845123732,20.0,180.01,179.93,0.8331662]
[1734845124126,20.0,180.01,179.9,30.64530547]
[1734845124435,20.0,180.0,179.87,30.64530547]
[1734845124933,20.0,180.0,179.83,7.46922566]
[1734845125135,20.0,179.96,179.84,30.64530547]
[1734845125334,20.0,179.96,179.83,31.47873113]
[1734845125534,20.0,179.92,179.81,30.64530547]
[1734845125853,20.0,179.92,179.79,31.47902659]
[1734845126227,20.0,179.92,179.8,30.64530547]
[1734845126944,0.2696,179.98,179.78,30.64530547]
[1734845126945,20.0,179.88,179.78,30.64530547]